bitfinex/quotes_BTCUSD_20250602
["timestamp","ask_amount","ask_price","bid_price","bid_amount"]
[1748896680601,2.0278054,104780.0,104770.0,0.84342797]
[1748896680816,2.0278054,104780.0,104770.0,1.34028721]
[1748896682983,2.0278054,104780.0,104770.0,1.34028573]
[1748896684354,2.0278054,104780.0,104770.0,0.84342649]
[1748896684582,2.52466464,104780.0,104770.0,0.44572649]
[1748896684806,2.52466464,104780.0,104770.0,0.43042649]
[1748896685032,2.55566464,104780.0,104770.0,0.81270649]
[1748896685244,2.56520762,104780.0,104770.0,0.81270649]
[1748896685491,2.55566464,104780.0,104770.0,0.81270649]
[1748896685727,2.53976464,104780.0,104770.0,0.81270649]
[1748896688131,2.52466464,104780.0,104770.0,0.81270649]
[1748896688352,2.0278054,104780.0,104770.0,0.81270649]
[1748896690267,2.0278054,104780.0,104770.0,1.34006573]
[1748896690950,2.0278054,104780.0,104770.0,1.34006386]
[1748896691877,2.0278054,104780.0,104770.0,0.84320462]
[1748896692517,2.0278054,104780.0,104770.0,1.34006386]
[1748896694706,2.0278054,104780.0,104770.0,1.33097584]
[1748896694951,2.0278054,104780.0,104770.0,1.34006213]
[1748896699450,2.0278054,104780.0,104770.0,1.34006218]
[1748896700721,2.0278054,104780.0,104770.0,1.33097584]
[1748896702077,2.0278054,104780.0,104770.0,1.34006237]
[1748896702290,2.0278054,104780.0,104770.0,0.84320313]
[1748896702503,2.0278054,104780.0,104770.0,1.34006237]
[1748896702711,2.0278054,104780.0,104770.0,1.04762237]
[1748896702939,2.0278054,104780.0,104770.0,1.33089584]
[1748896704386,2.0278054,104780.0,104770.0,1.03853584]
[1748896704586,2.0278054,104780.0,104770.0,1.33089584]
[1748896704960,1.99648346,104780.0,104770.0,1.33089584]
[1748896705979,1.99648346,104780.0,104770.0,0.8339966]
[1748896706441,2.4933427,104780.0,104770.0,0.5111366]
[1748896706656,3.02280194,104780.0,104770.0,0.4213366]
[1748896706866,3.03234492,104780.0,104770.0,0.4213366]
[1748896707075,3.05143161,104780.0,104770.0,0.7076423]
[1748896707283,2.5547132,104780.0,104770.0,0.3254823]
[1748896707500,2.55471293,104780.0,104770.0,0.7076423]
[1748896711274,2.84764389,104780.0,104770.0,0.31593823]
[1748896711493,2.55471357,104780.0,104770.0,0.6178423]
[1748896711702,2.55471357,104780.0,104770.0,0.5278423]
[1748896711888,2.56425728,104780.0,104770.0,0.5278423]
[1748896712097,2.55471357,104780.0,104770.0,0.5278423]
[1748896712875,2.5356266,104780.0,104770.0,0.5278423]
[1748896713075,2.54516995,104780.0,104770.0,0.5278423]
[1748896713255,2.55471339,104780.0,104770.0,0.5278423]
[1748896715168,2.04816978,104780.0,104770.0,0.5278423]
[1748896715578,2.05771313,104780.0,104770.0,0.5278423]
[1748896718525,2.04816978,104780.0,104770.0,0.5278423]
[1748896718969,2.03862653,104780.0,104770.0,0.5278423]
[1748896719315,2.04816978,104780.0,104770.0,0.5278423]
[1748896719535,2.03862653,104780.0,104770.0,0.5278423]
[1748896720325,2.5356266,104780.0,104770.0,0.5278423]
[1748896724068,2.57173385,104780.0,104770.0,0.2354823]
[1748896724300,2.57173376,104780.0,104770.0,0.5278023]
[1748896724934,2.59082017,104780.0,104770.0,0.5278023]
[1748896725139,2.55471292,104780.0,104770.0,0.5278023]
[1748896725990,2.54516967,104780.0,104770.0,0.5278023]
[1748896726635,2.54516967,104780.0,104770.0,0.53688799]
[1748896727256,2.54511401,104780.0,104770.0,0.53688799]
[1748896727759,1.99648346,104780.0,104770.0,0.63274229]
[1748896727971,1.99648346,104780.0,104770.0,1.1621867]
[1748896728399,1.99648346,104780.0,104770.0,1.2521867]
[1748896729939,1.99648346,104780.0,104770.0,1.16218418]
[1748896731423,1.99648346,104780.0,104770.0,0.66523977]
[1748896731977,1.99648346,104780.0,104770.0,1.1619869]
[1748896733839,1.99648346,104780.0,104770.0,1.1619799]
[1748896737773,1.99648346,104780.0,104770.0,1.16197677]
[1748896738617,1.99648346,104780.0,104770.0,0.66518964]
[1748896741041,1.99648346,104780.0,104770.0,0.66518454]
[1748896741743,1.99648346,104780.0,104770.0,0.75490454]
[1748896741951,1.99648346,104780.0,104770.0,1.25165167]
[1748896742862,1.99548346,104780.0,104770.0,1.25065167]
[1748896743044,1.99648346,104780.0,104770.0,1.26465167]
[1748896743220,1.99748346,104780.0,104770.0,1.26465167]
[1748896745515,1.99748346,104780.0,104770.0,1.60465167]
[1748896746963,1.99748346,104780.0,104770.0,2.01693167]
[1748896748022,1.99748346,104780.0,104770.0,2.01692748]
[1748896748241,1.99748346,104780.0,104770.0,2.03146833]
[1748896751775,1.99748346,104780.0,104770.0,2.02240458]
[1748896752021,1.99748346,104780.0,104770.0,2.03146934]
[1748896755254,1.99748346,104780.0,104770.0,2.43137763]
[1748896755918,1.99748346,104780.0,104770.0,2.43138464]
[1748896756380,1.99748346,104780.0,104770.0,2.43126464]
[1748896759596,1.99748346,104780.0,104770.0,2.92792006]
[1748896759837,1.99748346,104780.0,104770.0,2.92792898]
[1748896760054,1.99748346,104780.0,104770.0,2.43127356]
[1748896760270,1.99748346,104780.0,104770.0,2.45992456]
[1748896763531,2.14257595,104780.0,104770.0,2.45992456]
[1748896763775,2.14257595,104780.0,104770.0,2.45988571]
[1748896764450,2.14257595,104780.0,104770.0,2.45984571]
[1748896765714,2.14257595,104780.0,104770.0,2.45076387]
[1748896767658,2.14257595,104780.0,104770.0,2.06896387]
[1748896767869,2.14257595,104780.0,104770.0,2.45076387]
[1748896768083,2.14257595,104780.0,104770.0,2.45984844]
[1748896768398,2.14257595,104780.0,104770.0,2.45076387]
[1748896772294,2.14257595,104780.0,104770.0,2.06896387]
[1748896772518,2.14257595,104780.0,104770.0,2.45068387]
[1748896774941,2.14257595,104780.0,104770.0,2.43428387]
[1748896777960,2.14257595,104780.0,104770.0,2.45038387]
[1748896779399,2.14257595,104780.0,104770.0,2.45947711]
[1748896779811,2.14257595,104780.0,104770.0,2.45038387]
[1748896783266,2.11967568,104780.0,104770.0,2.45038387]
[1748896792772,2.11967568,104780.0,104770.0,2.06866387]
[1748896792983,2.11967568,104780.0,104770.0,2.45030387]
[1748896794874,2.11967568,104780.0,104770.0,2.15830387]
[1748896795078,2.11967568,104780.0,104770.0,2.45030387]
[1748896801413,2.11967568,104780.0,104770.0,2.43420387]
[1748896805994,2.11967568,104780.0,104770.0,2.44970387]
[1748896806223,2.11967568,104780.0,104770.0,2.97667011]
[1748896806685,2.11967568,104780.0,104770.0,2.97666116]
[1748896806893,2.08967568,104780.0,104770.0,2.94635929]
[1748896807137,2.08967568,104780.0,104770.0,3.24515929]
[1748896807647,1.62034675,104780.0,104770.0,3.78781471]
[1748896807880,0.60647148,104780.0,104770.0,4.98628097]
[1748896808106,0.60647148,104780.0,104770.0,10.02928097]
[1748896808107,0.45728991,104780.0,104770.0,10.02928097]
[1748896808342,0.32190337,104780.0,104770.0,10.43828097]
[1748896808581,0.20314481,104780.0,104770.0,10.45950362]
[1748896808821,0.11004492,104780.0,104770.0,10.47850362]
[1748896809064,0.01564514,104780.0,104770.0,10.47850362]
[1748896809333,0.04953478,104790.0,104780.0,0.66564728]
[1748896809551,0.04953478,104790.0,104780.0,1.7539824]
[1748896809773,0.03336478,104790.0,104780.0,1.7539824]
[1748896810006,0.02612478,104790.0,104780.0,2.1539824]
[1748896810225,0.00724,104790.0,104780.0,2.1539824]
[1748896810448,0.14337035,104810.0,104800.0,0.61560539]
[1748896810676,0.10237035,104810.0,104800.0,1.58906775]
[1748896811164,0.10237035,104810.0,104800.0,1.61770575]
[1748896811979,0.10337035,104810.0,104800.0,1.62670575]
[1748896812905,0.10437035,104810.0,104800.0,1.63570575]
[1748896814000,0.10437035,104810.0,104800.0,0.74809769]
[1748896814194,0.10437035,104810.0,104800.0,1.62566575]
[1748896817074,0.10437035,104810.0,104800.0,1.63566575]
[1748896817746,0.08837035,104810.0,104800.0,1.63566575]
[1748896819010,0.08837035,104810.0,104800.0,1.93446575]
[1748896821391,0.08837035,104810.0,104800.0,1.43829769]
[1748896821601,0.08837035,104810.0,104800.0,1.93446575]
[1748896822243,0.04068829,104810.0,104800.0,1.98446575]
[1748896824831,0.00475329,104810.0,104800.0,1.98446575]
[1748896826817,0.00475329,104810.0,104800.0,2.39650575]
[1748896827724,0.11794477,104820.0,104810.0,0.26598445]
[1748896827952,0.11794477,104820.0,104810.0,1.15680681]
[1748896828171,0.11794477,104820.0,104810.0,1.18490278]
[1748896828392,0.11794477,104820.0,104810.0,1.58490278]
[1748896829321,0.11794477,104820.0,104810.0,1.61353878]
[1748896829565,0.11894477,104820.0,104810.0,1.62153878]
[1748896830265,0.11894477,104820.0,104810.0,1.62753878]
[1748896831997,0.10394477,104820.0,104810.0,2.01753878]
[1748896835802,0.10394477,104820.0,104810.0,2.04776143]
[1748896837048,0.10394477,104820.0,104810.0,2.13720143]
[1748896837994,0.10394477,104820.0,104810.0,2.10697878]
[1748896839669,0.10394477,104820.0,104810.0,2.11697878]
[1748896840123,0.09294477,104820.0,104810.0,2.11697878]
[1748896840681,0.09294477,104820.0,104810.0,2.61314684]
[1748896842781,0.09294477,104820.0,104810.0,3.02514684]
[1748896843717,0.09294477,104820.0,104810.0,2.52897878]
[1748896845080,0.09294477,104820.0,104810.0,3.02514684]
[1748896845323,0.045269,104820.0,104810.0,3.02514684]
[1748896845821,0.11739379,104830.0,104820.0,0.27586352]
[1748896846065,0.11739379,104830.0,104820.0,1.36405394]
[1748896846307,0.11739379,104830.0,104820.0,0.63145782]
[1748896846560,0.11739379,104830.0,104820.0,1.52762588]
[1748896847020,0.11739379,104830.0,104820.0,1.52777114]
[1748896847228,0.07739379,104830.0,104820.0,1.53677114]
[1748896847439,0.07739379,104830.0,104820.0,1.54277114]
[1748896848185,0.10769379,104830.0,104820.0,1.12804308]
[1748896848582,0.10769379,104830.0,104820.0,1.62421114]
[1748896848793,0.08480743,104830.0,104820.0,1.62421114]
[1748896849182,0.08480743,104830.0,104820.0,0.71350223]
[1748896849443,0.08480743,104830.0,104820.0,0.72804308]
[1748896849646,0.08480743,104830.0,104820.0,1.12804308]
[1748896849853,0.08480743,104830.0,104820.0,1.62421114]
[1748896850505,0.08480743,104830.0,104820.0,1.63383851]
[1748896851374,0.08480743,104830.0,104820.0,1.13771045]
[1748896851582,0.08480743,104830.0,104820.0,1.63387851]
[1748896852218,0.08480743,104830.0,104820.0,0.75459045]
[1748896852435,0.08480743,104830.0,104820.0,0.73767045]
[1748896852647,0.08480743,104830.0,104820.0,0.44403045]
[1748896852870,0.08480743,104830.0,104820.0,1.07767045]
[1748896853099,0.08380743,104830.0,104820.0,1.06867045]
[1748896853365,0.08380743,104830.0,104820.0,1.07467045]
[1748896853566,0.08380743,104830.0,104820.0,1.06867045]
[1748896853800,0.08380743,104830.0,104820.0,1.47259045]
[1748896854260,0.04280743,104830.0,104820.0,1.47259045]
[1748896854926,0.04280743,104830.0,104820.0,1.88451045]
[1748896857035,0.04280743,104830.0,104820.0,1.88443045]
[1748896857261,0.04280743,104830.0,104820.0,1.91306845]
[1748896859992,0.04280743,104830.0,104820.0,1.91286845]
[1748896860229,0.04280743,104830.0,104820.0,1.11822845]
[1748896860424,0.04280743,104830.0,104820.0,1.91286845]
[1748896861051,0.04280743,104830.0,104820.0,1.11822845]
[1748896861267,0.04280743,104830.0,104820.0,1.91282845]
[1748896861477,0.00180743,104830.0,104820.0,1.91282845]
[1748896861905,0.00180743,104830.0,104820.0,1.11822845]
[1748896862132,0.00180743,104830.0,104820.0,1.91278845]
[1748896862358,0.00180743,104830.0,104820.0,1.4982076]
[1748896864057,0.00180743,104830.0,104820.0,1.2051276]
[1748896864265,0.00180743,104830.0,104820.0,1.4981276]
[1748896864475,0.01790743,104830.0,104820.0,1.4981276]
[1748896864713,0.01790743,104830.0,104820.0,1.1156876]
[1748896864941,0.01790743,104830.0,104820.0,1.4990476]
[1748896868458,0.4826121,104850.0,104840.0,0.21938081]
[1748896868665,0.4826121,104850.0,104840.0,0.69863511]
[1748896868856,0.47307549,104850.0,104840.0,0.69863511]
[1748896869316,0.47307549,104850.0,104840.0,0.40547511]
[1748896869534,0.01907577,104840.0,104830.0,0.3000857]
[1748896869740,0.52478199,104840.0,104830.0,0.68918]
[1748896870769,0.52478181,104840.0,104830.0,0.69218]
[1748896871250,0.50570576,104840.0,104830.0,0.68918]
[1748896871462,0.52716806,104840.0,104830.0,0.68918]
[1748896871670,0.53670567,104840.0,104830.0,0.68918]
[1748896871880,0.54270567,104840.0,104830.0,0.68918]
[1748896872973,0.55213069,104840.0,104830.0,0.68918]
[1748896873658,0.04942502,104840.0,104830.0,0.68918]
[1748896873885,0.55513069,104840.0,104830.0,0.68918]
[1748896874112,0.54559308,104840.0,104830.0,0.68918]
[1748896874973,0.54559308,104840.0,104830.0,0.68436883]
[1748896875672,0.54559308,104840.0,104830.0,0.30088883]
[1748896875902,0.54559308,104840.0,104830.0,0.68440883]
[1748896877523,0.54559308,104840.0,104830.0,0.30088883]
[1748896877727,0.54559308,104840.0,104830.0,0.59420883]
[1748896883848,0.54559308,104840.0,104830.0,0.30088883]
[1748896884050,0.5551306,104840.0,104830.0,0.68440883]
[1748896884462,0.57420609,104840.0,104830.0,0.68440883]
[1748896884668,0.58374425,104840.0,104830.0,0.68440883]
[1748896884945,0.77451113,104840.0,104830.0,0.20984625]
[1748896885163,0.27077942,104830.0,104820.0,0.2291079]
[1748896885376,0.5475451,104830.0,104820.0,0.53204742]
[1748896885652,0.55708399,104830.0,104820.0,0.23864742]
[1748896885877,0.55708399,104830.0,104820.0,0.53208742]
[1748896886110,0.55708389,104830.0,104820.0,0.53208742]
[1748896887289,0.55708389,104830.0,104820.0,0.53308742]
[1748896887533,0.5475451,104830.0,104820.0,0.53308742]
[1748896888251,0.52846806,104830.0,104820.0,0.53308742]
[1748896888519,0.53800658,104830.0,104820.0,0.53308742]
[1748896889310,0.00942502,104840.0,104820.0,0.59078236]
[1748896889539,0.04192502,104840.0,104830.0,0.31525604]
[1748896889760,0.0325,104840.0,104830.0,0.31525604]
[1748896890234,0.52866806,104840.0,104830.0,0.40549604]
[1748896890951,0.54402182,104840.0,104830.0,0.40549604]
[1748896891418,0.54702182,104840.0,104830.0,0.40549604]
[1748896891880,0.54402182,104840.0,104830.0,0.69889604]
[1748896892043,0.54702182,104840.0,104830.0,0.69889604]
[1748896897744,0.53072182,104840.0,104830.0,0.69889604]
[1748896901810,0.50516806,104840.0,104830.0,0.69889604]
[1748896902016,0.009,104840.0,104830.0,0.72969604]
[1748896902646,0.009,104840.0,104830.0,0.71439604]
[1748896907487,0.50516806,104840.0,104830.0,0.71439604]
[1748896907725,0.009,104840.0,104830.0,0.71439604]
[1748896912434,0.009,104840.0,104830.0,0.71379604]
[1748896913264,0.50516806,104840.0,104830.0,0.71379604]
[1748896921909,0.009,104840.0,104830.0,0.71379604]
[1748896922112,0.50516806,104840.0,104830.0,0.73019604]
[1748896922785,0.009,104840.0,104830.0,0.73019604]
[1748896927971,0.009,104840.0,104830.0,0.71379604]
[1748896930054,0.009,104840.0,104830.0,0.72959604]
[1748896931356,0.50529506,104840.0,104830.0,0.72959604]
[1748896933541,0.009,104840.0,104830.0,0.72959604]
[1748896933974,0.009,104840.0,104830.0,0.73915926]
[1748896934184,0.009,104840.0,104830.0,1.63545432]
[1748896934405,0.009,104840.0,104830.0,1.13915926]
[1748896934614,0.009,104840.0,104830.0,1.28915926]
[1748896935048,0.006,104840.0,104830.0,1.31779726]
[1748896936085,0.04471227,104850.0,104840.0,0.25138081]
[1748896936301,0.04471227,104850.0,104840.0,0.34723511]
[1748896937615,0.05071227,104850.0,104840.0,0.34723511]
[1748896937826,0.05071227,104850.0,104840.0,0.74723511]
[1748896938504,0.05371227,104850.0,104840.0,0.74723511]
[1748896938717,0.04471227,104850.0,104840.0,0.74723511]
[1748896939182,0.04471227,104850.0,104840.0,0.74823511]
[1748896940869,0.04471227,104850.0,104840.0,0.34823511]
[1748896941276,0.04471227,104850.0,104840.0,0.74823511]
[1748896943029,0.04471227,104850.0,104840.0,0.77687111]
[1748896944381,0.04471227,104850.0,104840.0,0.37687111]
[1748896944841,0.04471227,104850.0,104840.0,0.77687111]
[1748896955217,0.04471227,104850.0,104840.0,1.27294994]
[1748896959607,0.04471227,104850.0,104840.0,1.56510994]
[1748896960094,0.04471227,104850.0,104840.0,1.06903111]
[1748896961520,0.04471227,104850.0,104840.0,1.56510994]
[1748896962893,0.04471227,104850.0,104840.0,1.06903111]
[1748896964355,0.55032771,104850.0,104840.0,0.40595511]
[1748896964611,1.3707035,104850.0,104840.0,0.30669741]
[1748896964841,1.26865586,104850.0,104840.0,0.28762118]
[1748896965093,1.26865586,104850.0,104840.0,0.49334522]
[1748896965329,1.26865586,104850.0,104840.0,0.50288338]
[1748896965800,1.26865586,104850.0,104840.0,0.50188338]
[1748896966035,0.24134311,104840.0,104830.0,0.44958258]
[1748896966268,1.05227113,104840.0,104830.0,0.65190258]
[1748896966722,1.06180929,104840.0,104830.0,0.50190258]
[1748896966948,1.05227113,104840.0,104830.0,0.50190258]
[1748896967150,1.0618092,104840.0,104830.0,0.50290258]
[1748896967351,0.56608685,104840.0,104830.0,0.50290258]
[1748896967714,0.55654878,104840.0,104830.0,0.50290258]
[1748896969451,0.56608685,104840.0,104830.0,0.50290258]
[1748896969887,0.57562501,104840.0,104830.0,0.50290258]
[1748896970116,0.55654878,104840.0,104830.0,0.50290258]
[1748896970327,0.5470108,104840.0,104830.0,0.50290258]
[1748896970576,0.55654878,104840.0,104830.0,0.50290258]
[1748896971222,0.5470108,104840.0,104830.0,0.50290258]
[1748896971436,0.55654878,104840.0,104830.0,0.50290258]
[1748896972167,0.55654868,104840.0,104830.0,0.50298258]
[1748896972378,0.52793531,104840.0,104830.0,0.50298258]
[1748896972583,0.52793531,104840.0,104830.0,0.21086258]
[1748896972812,0.28373608,104850.0,104840.0,0.21938081]
[1748896972813,0.58584812,104850.0,104840.0,0.21938081]
[1748896973014,0.62012188,104850.0,104840.0,0.21938081]
[1748896973830,0.62965895,104850.0,104840.0,0.21938081]
[1748896974045,0.64219611,104850.0,104840.0,0.21938081]
[1748896974243,0.63265895,104850.0,104840.0,0.21938081]
[1748896975381,0.62312188,104850.0,104840.0,0.21938081]
[1748896975877,0.62912188,104850.0,104840.0,0.21938081]
[1748896976761,0.61362188,104850.0,104840.0,0.21938081]
[1748896977170,0.62315904,104850.0,104840.0,0.21938081]
[1748896977601,0.63925904,104850.0,104840.0,0.21938081]
[1748896977825,0.62972188,104850.0,104840.0,0.21938081]
[1748896978041,0.63925904,104850.0,104840.0,0.21938081]
[1748896979083,0.64879629,104850.0,104840.0,0.21938081]
[1748896979714,0.63925904,104850.0,104840.0,0.21938081]
[1748896980337,0.83954497,104850.0,104840.0,0.21938081]
[1748896980552,0.73214005,104850.0,104840.0,0.21938081]
[1748896981380,0.63925904,104850.0,104840.0,0.21938081]
[1748896981588,0.63925913,104850.0,104840.0,0.21938081]
[1748896982020,0.61362188,104850.0,104840.0,0.21938081]
[1748896982254,0.08291281,104850.0,104840.0,0.21938081]
[1748896982467,0.58888482,104850.0,104840.0,0.23498081]
[1748896983924,0.5984217,104850.0,104840.0,0.23498081]
[1748896984556,0.59842161,104850.0,104840.0,0.23498081]
[1748896984990,0.58888482,104850.0,104840.0,0.23498081]
[1748896985215,0.55014758,104850.0,104840.0,0.33083511]
[1748896985923,0.05371227,104850.0,104840.0,0.33083511]
[1748896988434,0.05371227,104850.0,104840.0,0.34653511]
[1748896991807,0.05371227,104850.0,104840.0,0.33083511]
[1748896993257,0.06324906,104850.0,104840.0,0.60715511]
[1748896993465,0.55014758,104850.0,104840.0,0.60715511]
[1748896993675,0.55968419,104850.0,104840.0,0.60715511]
[1748896994571,0.55014758,104850.0,104840.0,0.62235511]
[1748896995830,0.55968428,104850.0,104840.0,0.62235511]
[1748896996224,0.55014758,104850.0,104840.0,0.62235511]
[1748896996429,0.55968428,104850.0,104840.0,0.62235511]
[1748896996952,0.55014758,104850.0,104840.0,0.62235511]
[1748896997169,0.55968428,104850.0,104840.0,0.62235511]
[1748896997389,0.55949323,104850.0,104840.0,0.62235511]
[1748896999365,0.56903011,104850.0,104840.0,0.62235511]
[1748896999495,0.55949323,104850.0,104840.0,0.62235511]
[1748897000599,0.55949323,104850.0,104840.0,0.33043511]
[1748897000809,0.56903002,104850.0,104840.0,0.60715511]
[1748897001046,0.54995653,104850.0,104840.0,0.60715511]
[1748897001258,0.54995653,104850.0,104840.0,0.62325511]
[1748897001458,0.55949323,104850.0,104840.0,0.62325511]
[1748897003585,0.56903002,104850.0,104840.0,0.62325511]
[1748897003804,0.67107821,104850.0,104840.0,0.21938081]
[1748897004046,0.60400424,104850.0,104840.0,0.51130081]
[1748897005515,0.59446699,104850.0,104840.0,0.51130081]
[1748897005731,0.79475292,104850.0,104840.0,0.21938081]
[1748897005976,0.61354158,104850.0,104840.0,0.51130081]
[1748897007060,0.60400424,104850.0,104840.0,0.51130081]
[1748897007969,0.62188862,104850.0,104840.0,0.51130081]
[1748897008192,0.79475356,104850.0,104840.0,0.51130081]
[1748897008410,0.79475356,104850.0,104840.0,0.5113009]
[1748897009537,0.60400488,104850.0,104840.0,0.5208386]
[1748897009666,0.57856754,104850.0,104840.0,0.5208386]
[1748897012220,0.57856745,104850.0,104840.0,0.5208386]
[1748897012435,0.5690302,104850.0,104840.0,0.5208386]
[1748897012657,0.57856736,104850.0,104840.0,0.5374386]
[1748897013300,0.57856736,104850.0,104840.0,0.5208386]
[1748897013967,0.58810461,104850.0,104840.0,0.5208386]
[1748897015330,0.57916202,104850.0,104840.0,0.5208386]
[1748897015780,0.56962477,104850.0,104840.0,0.5208386]
[1748897016259,0.56962477,104850.0,104840.0,0.5371386]
[1748897017137,0.57916202,104850.0,104840.0,0.5371386]
[1748897017565,0.56962477,104850.0,104840.0,0.5371386]
[1748897018224,0.56962468,104850.0,104840.0,0.5371386]
[1748897019070,0.56962468,104850.0,104840.0,0.5208386]
[1748897019279,0.57916193,104850.0,104840.0,0.5208386]
[1748897019499,0.56962468,104850.0,104840.0,0.5208386]
[1748897020590,0.57916184,104850.0,104840.0,0.5208386]
[1748897021464,0.58869909,104850.0,104840.0,0.5208386]
[1748897022111,0.57916184,104850.0,104840.0,0.5208386]
[1748897022319,0.56008761,104850.0,104840.0,0.5208386]
[1748897022527,0.56008761,104850.0,104840.0,0.5371386]
[1748897022743,0.56962458,104850.0,104840.0,0.5371386]
[1748897023419,0.56008761,104850.0,104840.0,0.5371386]
[1748897025202,0.55055073,104850.0,104840.0,0.5371386]
[1748897025423,0.51478105,104850.0,104840.0,0.5371386]
[1748897025858,0.52431802,104850.0,104840.0,0.5371386]
[1748897026291,0.53385509,104850.0,104840.0,0.5371386]
[1748897026546,0.52431802,104850.0,104840.0,0.5371386]
[1748897027206,0.53385527,104850.0,104840.0,0.5371386]
[1748897027440,0.01853679,104850.0,104840.0,0.5371386]
[1748897027663,0.51478096,104850.0,104840.0,0.5371386]
[1748897027889,0.51478096,104850.0,104840.0,0.5527386]
[1748897028109,0.52431784,104850.0,104840.0,0.5527386]
[1748897029610,0.52431775,104850.0,104840.0,0.5527386]
[1748897030946,0.51478096,104850.0,104840.0,0.5527386]
[1748897031166,0.009,104850.0,104840.0,0.5527386]
[1748897031386,0.50524426,104850.0,104840.0,0.5527386]
[1748897031642,0.51478096,104850.0,104840.0,0.5527386]
[1748897033802,0.52431775,104850.0,104840.0,0.5527386]
[1748897035181,0.51478096,104850.0,104840.0,0.5527386]
[1748897038582,0.0185367,104850.0,104840.0,0.5527386]
[1748897038792,0.50524426,104850.0,104840.0,0.5527386]
[1748897038998,0.51478087,104850.0,104840.0,0.5532186]
[1748897040040,0.52431757,104850.0,104840.0,0.5532186]
[1748897041938,0.51478087,104850.0,104840.0,0.5532186]
[1748897049023,0.50524426,104850.0,104840.0,0.5532186]
[1748897049231,0.51478096,104850.0,104840.0,0.5532186]
[1748897052333,0.51478087,104850.0,104840.0,0.5532186]
[1748897061087,0.52431766,104850.0,104840.0,0.5532186]
[1748897061747,0.51478087,104850.0,104840.0,0.5532186]
[1748897062183,0.51478087,104850.0,104840.0,0.5527386]
[1748897062839,0.52431757,104850.0,104840.0,0.5527386]
[1748897065589,0.51478087,104850.0,104840.0,0.5527386]
[1748897066490,0.53385445,104850.0,104840.0,0.5527386]
[1748897066705,0.52431757,104850.0,104840.0,0.5527386]
[1748897066935,0.51478087,104850.0,104840.0,0.5527386]
[1748897067839,0.01853661,104850.0,104840.0,0.5527386]
[1748897068053,0.51478087,104850.0,104840.0,0.5527386]
[1748897068268,0.51478096,104850.0,104840.0,0.5527386]
[1748897072453,0.50524426,104850.0,104840.0,0.5527386]
[1748897073129,0.51478087,104850.0,104840.0,0.5527386]
[1748897073583,0.52431766,104850.0,104840.0,0.5527386]
[1748897073803,0.51478087,104850.0,104840.0,0.5527386]
[1748897074450,0.52431766,104850.0,104840.0,0.5527386]
[1748897074691,0.50524426,104850.0,104840.0,0.5527386]
[1748897075139,0.51478096,104850.0,104840.0,0.5527386]
[1748897076233,0.51478087,104850.0,104840.0,0.5527386]
[1748897078013,0.50524426,104850.0,104840.0,0.5527386]
[1748897078247,0.51478087,104850.0,104840.0,0.5527386]
[1748897081678,0.50524426,104850.0,104840.0,0.5527386]
[1748897085122,0.009,104850.0,104840.0,0.3566729]
[1748897085338,0.009,104850.0,104840.0,1.23435716]
[1748897086621,0.01564836,104860.0,104850.0,0.21935988]
[1748897086833,0.01564836,104860.0,104850.0,0.34741418]
[1748897088543,0.02164836,104860.0,104850.0,0.34741418]
[1748897088969,0.02464836,104860.0,104850.0,0.34741418]
[1748897090116,0.52089262,104860.0,104850.0,0.34741418]
[1748897099408,1.09091644,104860.0,104850.0,0.62325418]
[1748897099651,0.58513602,104860.0,104850.0,0.62325418]
[1748897099883,0.59467209,104860.0,104850.0,0.62325418]
[1748897100580,0.60420834,104860.0,104850.0,0.62325418]
[1748897100791,0.61374468,104860.0,104850.0,0.62325418]
[1748897101013,0.74023177,104860.0,104850.0,0.32187739]
[1748897101237,0.20982263,104850.0,104840.0,0.24254219]
[1748897101455,0.51531821,104850.0,104840.0,0.22634256]
[1748897101680,0.52485546,104850.0,104840.0,0.50168256]
[1748897102102,0.51531784,104850.0,104840.0,0.20984256]
[1748897102317,0.51531784,104850.0,104840.0,0.51718256]
[1748897102774,0.51531784,104850.0,104840.0,0.51818256]
[1748897102981,1.10253222,104860.0,104850.0,0.21935978]
[1748897103188,1.59877648,104860.0,104850.0,0.21935978]
[1748897103401,1.62560136,104860.0,104850.0,0.21935978]
[1748897103635,1.62558868,104860.0,104850.0,0.21935978]
[1748897104059,1.60928868,104860.0,104850.0,0.21935978]
[1748897104492,1.60034708,104860.0,104850.0,0.21935978]
[1748897104713,1.60035979,104860.0,104850.0,0.21935978]
[1748897104923,1.58547648,104860.0,104850.0,0.21935978]
[1748897105129,1.60935978,104860.0,104850.0,0.21935978]
[1748897105373,0.91632586,104860.0,104850.0,0.24419657]
[1748897105589,0.90678952,104860.0,104850.0,0.25969657]
[1748897105988,0.89844247,104860.0,104850.0,0.25969657]
[1748897106201,0.89843812,104860.0,104850.0,0.25969657]
[1748897106398,0.88950082,104860.0,104850.0,0.25969657]
[1748897106600,1.38574508,104860.0,104850.0,0.25969657]
[1748897108067,1.39468248,104860.0,104850.0,0.25969657]
[1748897108302,1.38574508,104860.0,104850.0,0.25969657]
[1748897108518,1.40280078,104860.0,104850.0,0.25969657]
[1748897108730,1.40280068,104860.0,104850.0,0.25969657]
[1748897109200,1.38552466,104860.0,104850.0,0.25969657]
[1748897109436,1.39446238,104860.0,104850.0,0.25969657]
[1748897109655,1.38552466,104860.0,104850.0,0.25969657]
[1748897110081,1.41233783,104860.0,104850.0,0.25969657]
[1748897110291,1.3759885,104860.0,104850.0,0.25969657]
[1748897110500,1.39386395,104860.0,104850.0,0.25969657]
[1748897110702,1.40280167,104860.0,104850.0,0.25969657]
[1748897110912,1.41233911,104860.0,104850.0,0.25969657]
[1748897111134,1.38552466,104860.0,104850.0,0.25969657]
[1748897111562,1.3759885,104860.0,104850.0,0.25969657]
[1748897111774,1.39386481,104860.0,104850.0,0.25969657]
[1748897111991,1.3759885,104860.0,104850.0,0.25969657]
[1748897112409,1.38492665,104860.0,104850.0,0.25969657]
[1748897112613,1.40280295,104860.0,104850.0,0.25969657]
[1748897112825,1.3938648,104860.0,104850.0,0.25969657]
[1748897113010,1.40280295,104860.0,104850.0,0.25969657]
[1748897113460,1.37479293,104860.0,104850.0,0.25969657]
[1748897113699,0.02442813,104860.0,104850.0,0.35555087]
[1748897116660,0.02442813,104860.0,104850.0,0.85179513]
[1748897117322,0.02442813,104860.0,104850.0,0.35555087]
[1748897118643,0.52067239,104860.0,104850.0,0.73687087]
[1748897121103,0.53020827,104860.0,104850.0,0.73687087]
[1748897121319,1.02645244,104860.0,104850.0,0.72137087]
[1748897121531,1.03598832,104860.0,104850.0,0.72137087]
[1748897121739,1.02645244,104860.0,104850.0,0.72137087]
[1748897122154,1.02645244,104860.0,104850.0,0.34005087]
[1748897122370,1.03598851,104860.0,104850.0,0.72137087]
[1748897122579,1.03598832,104860.0,104850.0,0.42957087]
[1748897122792,1.03598832,104860.0,104850.0,0.72137087]
[1748897122793,1.02645244,104860.0,104850.0,0.72137087]
[1748897123417,1.02645253,104860.0,104850.0,0.72137087]
[1748897123634,0.52067239,104860.0,104850.0,0.72137087]
[1748897123851,0.53020818,104860.0,104850.0,0.72137087]
[1748897124323,1.02645244,104860.0,104850.0,0.72137087]
[1748897124546,1.01691665,104860.0,104850.0,0.72137087]